fUST/lending_fUST_20240324
["ID","MTS","AMOUNT","RATE_DAILY","PERIOD"]
[320212725,1711210237871,-574.68598796,0.00024,2]
[320212728,1711210237882,-50000.0,0.000245,2]
[320212729,1711210237892,-151.5270051,0.000245,2]
[320212730,1711210237902,-7.63176366,0.000245,3]
[320212850,1711211153175,-492.36823634,0.000245,3]
[320212851,1711211153196,-500.0,0.000245,2]
[320212852,1711211153216,-594.16542344,0.00024599,2]
[320212853,1711211153236,-43651.0,0.000246,2]
[320212854,1711211153258,-3087.2728321,0.00024656,2]
[320212855,1711211153277,-260.9833463,0.00024657,2]
[320212923,1711211438054,-151.5270051,0.00024557,2]
[320212924,1711211438065,-500.0,0.00024657,2]
[320212925,1711211438076,-500.0,0.00024657,2]
[320212926,1711211438086,-500.0,0.00024657,2]
[320212927,1711211438097,-281.56254263,0.00024657,2]
[320212928,1711211438107,-500.0,0.00024657,2]
[320212929,1711211438117,-605.37080076,0.00024657,2]
[320212930,1711211438127,-754.03,0.00024657,2]
[320212931,1711211438138,-500.0,0.00024657,2]
[320212932,1711211438148,-500.0,0.00024657,2]
[320212933,1711211438158,-170.2459695,0.00024657,2]
[320212934,1711211438168,-500.0,0.00024657,2]
[320212935,1711211438179,-977.65,0.00024657,2]
[320212936,1711211438189,-566.89,0.00024657,2]
[320212937,1711211438198,-1046.43,0.00024657,2]
[320212938,1711211438207,-500.0,0.00024657,2]
[320212939,1711211438216,-547.17,0.00024657,2]
[320212940,1711211438225,-165.27892529,0.00024657,2]
[320212941,1711211438463,-334.72107471,0.00024657,2]
[320212942,1711211438472,-830.87,0.00024657,2]
[320212943,1711211438482,-788.05,0.00024657,2]
[320212944,1711211438491,-1567.94,0.00024657,2]
[320212945,1711211438500,-500.0,0.00024657,2]
[320212946,1711211438510,-503.57126688,0.00024657,2]
[320212947,1711211438519,-500.0,0.00024657,2]
[320212948,1711211438528,-500.0,0.00024657,2]
[320212950,1711211438537,-500.0,0.00024657,2]
[320212952,1711211438547,-500.0,0.00024657,2]
[320212954,1711211438556,-500.0,0.00024657,2]
[320212956,1711211438566,-500.0,0.00024657,2]
[320212958,1711211438576,-500.0,0.00024657,2]
[320212960,1711211438586,-451.63645465,0.00024657,2]
[320212962,1711211438595,-500.0,0.00024657,2]
[320212964,1711211438606,-500.0,0.00024657,2]
[320212966,1711211438618,-500.0,0.00024657,2]
[320212968,1711211438629,-500.0,0.00024657,2]
[320212970,1711211438640,-500.0,0.00024657,2]
[320212972,1711211438651,-500.0,0.00024657,2]
[320212974,1711211438662,-162.01,0.00024657,2]
[320212976,1711211438673,-500.0,0.00024657,2]
[320212978,1711211438685,-500.0,0.00024657,2]
[320212980,1711211438698,-500.0,0.00024657,2]
[320212982,1711211438710,-627.72876137,0.00024657,2]
[320212984,1711211438721,-1036.59,0.00024657,2]
[320212986,1711211438739,-2494.79,0.00024657,2]
[320212988,1711211438751,-14063.48,0.00024657,2]
[320212989,1711211438765,-867.99,0.00024657,2]
[320212991,1711211438785,-500.0,0.00024657,2]
[320212994,1711211438796,-500.0,0.00024657,2]
[320212996,1711211438810,-1415.31811408,0.00024657,2]
[320213298,1711211446261,-3608.70188592,0.00024657,2]
[320213300,1711211446272,-771.7,0.00024657,2]
[320213302,1711211446281,-500.0,0.00024657,2]
[320213304,1711211446290,-500.0,0.00024657,2]
[320213306,1711211446298,-500.0,0.00024657,2]
[320213308,1711211446307,-11072.6,0.00024657,2]
[320213310,1711211446316,-1806.72,0.00024657,2]
[320213312,1711211446325,-1427.13,0.00024657,2]
[320213314,1711211446334,-1033.43,0.00024657,2]
[320213316,1711211446343,-500.0,0.00024657,2]
[320213318,1711211446352,-500.0,0.00024657,2]
[320213320,1711211446362,-863.83,0.00024657,2]
[320213322,1711211446370,-500.0,0.00024657,2]
[320213324,1711211446379,-1201.99,0.00024657,2]
[320213326,1711211446388,-500.0,0.00024657,2]
[320213328,1711211446397,-2466.54,0.00024657,2]
[320213330,1711211446406,-11825.88,0.00024657,2]
[320213332,1711211446416,-1206.36,0.00024657,2]
[320213334,1711211446424,-500.0,0.00024657,2]
[320213336,1711211446433,-500.0,0.00024657,2]
[320213338,1711211446442,-581.08,0.00024657,2]
[320213340,1711211446451,-500.0,0.00024657,2]
[320213342,1711211446460,-500.0,0.00024657,2]
[320213344,1711211446469,-2640.45,0.00024657,2]
[320213346,1711211446478,-12700.58,0.00024657,2]
[320213348,1711211446487,-501.42039481,0.00024657,2]
[320213350,1711211446495,-918.4,0.00024657,2]
[320213352,1711211446505,-500.0,0.00024657,2]
[320213354,1711211446514,-963.13,0.00024657,2]
[320213356,1711211446523,-3011.99,0.00024657,2]
[320213358,1711211446532,-500.0,0.00024657,2]
[320213360,1711211446541,-691.55,0.00024657,2]
[320213362,1711211446549,-1223.06,0.00024657,2]
[320213364,1711211446558,-500.0,0.00024657,2]
[320213365,1711211446567,-500.0,0.00024657,2]
[320213367,1711211446576,-987.85,0.00024657,2]
[320213369,1711211446585,-500.0,0.00024657,2]
[320213371,1711211446594,-500.0,0.00024657,2]
[320213373,1711211446603,-500.0,0.00024657,2]
[320213375,1711211446617,-166.666666,0.00024658,2]
[320213377,1711211446626,-33414.4927024,0.00024931,3]
[320213380,1711211446635,-538.95629958,0.00024931,2]
[320213382,1711211446644,-754.03,0.00024931,2]
[320213383,1711211446655,-500.0,0.00024931,2]
[320213385,1711211446664,-977.65,0.00024931,2]
[320213387,1711211446673,-566.89,0.00024931,2]
[320213390,1711211446682,-1046.43,0.00024931,2]
[320213391,1711211446692,-500.0,0.00024931,2]
[320213393,1711211446701,-547.17,0.00024931,2]
[320213396,1711211446710,-500.0,0.00024931,2]
[320213398,1711211446720,-830.87,0.00024931,2]
[320213400,1711211446729,-788.05,0.00024931,2]
[320213402,1711211446738,-1567.94,0.00024931,2]
[320213403,1711211446747,-500.0,0.00024931,2]
[320213405,1711211446757,-500.0,0.00024931,2]
[320213408,1711211446768,-500.0,0.00024931,2]
[320213409,1711211446776,-500.0,0.00024931,2]
[320213412,1711211446786,-500.0,0.00024931,2]
[320213414,1711211446795,-500.0,0.00024931,2]
[320213416,1711211446805,-500.0,0.00024931,2]
[320213417,1711211446816,-500.0,0.00024931,2]
[320213419,1711211446826,-500.0,0.00024931,2]
[320213422,1711211446835,-253.41058393,0.00024931,2]
[320214457,1711212359668,-1955.99190053,0.00022829,2]
[320214458,1711212359688,-309.86056352,0.0002283,2]
[320214459,1711212359708,-150.0,0.00022831,2]
[320214460,1711212359728,-4503.0243529,0.00023605,2]
[320214461,1711212359748,-487.92325292,0.00023671,2]
[320214462,1711212359773,-173.63504149,0.00023671,2]
[320214463,1711212359793,-300.0,0.00023672,2]
[320214464,1711212359813,-14388.6494502,0.00023673,2]
[320214465,1711212359834,-156.915523,0.00023844,2]
[320214466,1711212359856,-174.86356,0.00023844,2]
[320214467,1711212359877,-7755.00362505,0.00024,2]
[320214468,1711212359898,-255.81604198,0.00024557,2]
[320214469,1711212359918,-194.85675765,0.00024557,2]
[320214470,1711212359939,-155.25832095,0.00024655,2]
[320214471,1711212359961,-861.20297863,0.00024655,2]
[320214472,1711212359981,-271.78886118,0.00024656,2]
[320214473,1711212360001,-3794.23584445,0.00024656,2]
[320214474,1711212360022,-500.0,0.00024657,2]
[320214475,1711212360043,-12071.73671592,0.00024657,2]
[320214476,1711212360063,-500.0,0.00024657,2]
[320214477,1711212360082,-691.2,0.00024657,2]
[320214478,1711212360102,-500.0,0.00024657,2]
[320214479,1711212360122,-993.4,0.00024657,2]
[320214480,1711212360143,-498.80268368,0.00024657,2]
[320214481,1711212360164,-831.82,0.00024657,2]
[320214482,1711212360185,-500.0,0.00024657,2]
[320214483,1711212360205,-739.55,0.00024657,2]
[320214484,1711212360224,-500.0,0.00024657,2]
[320214485,1711212360243,-500.0,0.00024657,2]
[320214486,1711212360265,-500.0,0.00024657,2]
[320214487,1711212360289,-614.88212596,0.00024657,2]
[320214488,1711212360312,-500.0,0.00024657,2]
[320214489,1711212360332,-246.58941607,0.00024657,2]
[320214490,1711212360353,-1172.1,0.00024657,2]
[320214491,1711212360374,-500.0,0.00024657,2]
[320214492,1711212360394,-662.73,0.00024657,2]
[320214493,1711212360415,-284.96469214,0.00024657,2]
[320214494,1711212360434,-896.17,0.00024657,2]
[320214495,1711212360454,-500.0,0.00024657,2]
[320214496,1711212360473,-500.0,0.00024657,2]
[320214497,1711212360496,-500.0,0.00024657,2]
[320214498,1711212360515,-519.65,0.00024657,2]
[320214499,1711212360536,-959.23,0.00024657,2]
[320214500,1711212360555,-500.0,0.00024657,2]
[320214501,1711212360574,-501.57,0.00024657,2]
[320214502,1711212360594,-500.0,0.00024657,2]
[320214503,1711212360614,-761.63,0.00024657,2]
[320214504,1711212360635,-722.38,0.00024657,2]
[320214505,1711212360656,-500.0,0.00024657,2]
[320214506,1711212360676,-946.69,0.00024657,2]
[320214507,1711212360696,-500.0,0.00024657,2]
[320214508,1711212360715,-500.0,0.00024657,2]
[320214509,1711212360734,-1437.28,0.00024657,2]
[320214510,1711212360753,-13379.70404258,0.00024657,2]
[320214647,1711212638743,-150.0,0.00022557,2]
[320214648,1711212638753,-325.96280583,0.00022557,5]
[320214649,1711212638763,-8781.89838831,0.00023674,2]
[320214650,1711212638775,-337.59,0.00023674,2]
[320214734,1711212644337,-8827.23563029,0.00023674,2]
[320214735,1711212644347,-6758.37288784,0.00024,2]
[320214736,1711212644356,-999.62553973,0.00024656,2]
[320214737,1711212644366,-1954.60910448,0.00024656,2]
[320214738,1711212644376,-500.0,0.00024657,2]
[320214739,1711212644385,-500.0,0.00024657,2]
[320214740,1711212644394,-501.19073099,0.00024657,2]
[320214741,1711212644403,-500.0,0.00024657,2]
[320214742,1711212644413,-500.0,0.00024657,2]
[320214743,1711212644423,-500.0,0.00024657,2]
[320214744,1711212644432,-500.0,0.00024657,2]
[320214745,1711212644442,-500.0,0.00024657,2]
[320214746,1711212644452,-500.0,0.00024657,2]
[320214747,1711212644461,-605.37080076,0.00024657,2]
[320214748,1711212644472,-952.0,0.00024657,2]
[320214749,1711212644482,-797.16,0.00024657,2]
[320214750,1711212644492,-2390.84,0.00024657,2]
[320214751,1711212644501,-500.0,0.00024657,2]
[320214752,1711212644511,-500.0,0.00024657,2]
[320214753,1711212644521,-10611.24,0.00024657,2]
[320214754,1711212644530,-1731.44,0.00024657,2]
[320214755,1711212644541,-500.0,0.00024657,2]
[320214756,1711212644550,-1151.9,0.00024657,2]
[320214757,1711212644560,-827.84,0.00024657,2]
[320214758,1711212644570,-2363.77,0.00024657,2]
[320214759,1711212644580,-500.0,0.00024657,2]
[320214760,1711212644590,-1156.09,0.00024657,2]
[320214761,1711212644599,-737.19,0.00024657,2]
[320214762,1711212644609,-500.0,0.00024657,2]
[320214763,1711212644618,-500.0,0.00024657,2]
[320214764,1711212644627,-556.87,0.00024657,2]
[320214765,1711212644637,-2530.43,0.00024657,2]
[320214766,1711212644647,-500.0,0.00024657,2]
[320214767,1711212644656,-880.14,0.00024657,2]
[320214768,1711212644666,-170.2459695,0.00024657,2]
[320214769,1711212644675,-500.0,0.00024657,2]
[320214770,1711212644684,-907.25,0.00024657,2]
[320214771,1711212644694,-502.9791047,0.00024657,2]
[320214772,1711212644703,-9562.04445971,0.00024657,2]
[320214775,1711212646728,-3357.97554029,0.00024657,2]
[320214776,1711212646737,-500.0,0.00024657,2]
[320214777,1711212646748,-166.666666,0.00024658,2]
[320214778,1711212646758,-1383.49000396,0.00024682,2]
[320214779,1711212646767,-153.0,0.000247,2]
[320214780,1711212646776,-170.54402797,0.00024729,2]
[320214781,1711212646786,-969.435177,0.000249,30]
[320214782,1711212646799,-153.0,0.000249,2]
[320214783,1711212646808,-170.54402797,0.000249,2]
[320214784,1711212646819,-153.0,0.000249,2]
[320214785,1711212646827,-153.0,0.000249,2]
[320214786,1711212646837,-500.0,0.00024927,2]
[320214787,1711212646846,-500.0,0.00024928,2]
[320214788,1711212646857,-500.0,0.00024928,2]
[320214789,1711212646867,-500.0,0.00024928,2]
[320214790,1711212646876,-500.0,0.00024928,2]
[320214791,1711212646886,-708.73,0.00024928,2]
[320214792,1711212646895,-4814.69,0.00024928,2]
[320214793,1711212646905,-500.0,0.00024928,2]
[320214794,1711212646914,-1367.67,0.00024928,2]
[320214795,1711212646923,-500.0,0.00024928,2]
[320214796,1711212646933,-500.0,0.00024928,2]
[320214797,1711212646942,-12171.39,0.00024928,2]
[320214798,1711212646952,-635.12,0.00024928,2]
[320214799,1711212646962,-1123.26,0.00024928,2]
[320214800,1711212646971,-2886.49,0.00024928,2]
[320214801,1711212646980,-500.0,0.00024928,2]
[320214802,1711212646990,-500.0,0.00024928,2]
[320214803,1711212647002,-899.57,0.00024928,2]
[320214804,1711212647011,-500.0,0.00024928,2]
[320214805,1711212647020,-170.41187554,0.00024929,2]
[320214806,1711212647029,-559.42003302,0.00024929,2]
[320214807,1711212647039,-302.29977963,0.00024929,2]
[320214808,1711212647048,-205.18119255,0.00024929,2]
[320214809,1711212647057,-876.67409275,0.00024929,2]
[320214810,1711212647067,-602.93757777,0.00024929,2]
[320214811,1711212647077,-157.54442201,0.00024929,2]
[320214812,1711212647086,-252.94190779,0.00024929,2]
[320214813,1711212647095,-1477.06322297,0.00024929,2]
[320214814,1711212647105,-263.56948973,0.00024929,2]
[320214815,1711212647114,-155.04641433,0.00024929,2]
[320214816,1711212647123,-155.18509053,0.00024929,2]
[320214817,1711212647132,-211.05575789,0.00024929,2]
[320214818,1711212647141,-863.54495364,0.00024929,2]
[320214819,1711212647150,-685.3267314,0.00024929,2]
[320214820,1711212647159,-291.04503375,0.00024929,2]
[320214821,1711212647170,-431.49444787,0.00024929,2]
[320214822,1711212647179,-198.37656102,0.00024929,2]
[320214823,1711212647188,-309.86056352,0.00024929,2]
[320214824,1711212647197,-1919.62840368,0.00024929,2]
[320214825,1711212647207,-157.60016488,0.00024929,2]
[320214826,1711212647217,-156.28840178,0.00024929,2]
[320214827,1711212647227,-498.31,0.0002493,2]
[320214828,1711212647236,-2411.90513681,0.0002493,2]
[320214829,1711212647245,-3100.34610271,0.0002493,2]
[320214830,1711212647254,-11333.14,0.0002493,2]
[320214831,1711212647264,-500.0,0.0002493,2]
[320214832,1711212647273,-312.94649189,0.00024931,2]
[320214833,1711212647283,-8679.26236231,0.00024931,7]
[320214834,1711212647294,-225.03178758,0.00024931,2]
[320214835,1711212647303,-500.0,0.00024931,2]
[320214836,1711212647313,-500.0,0.00024931,2]
[320214837,1711212647322,-177.46323416,0.00024931,2]
[320214838,1711212647331,-581.4613547,0.00024931,2]
[320214839,1711212647341,-500.0,0.00024931,2]
[320214840,1711212647350,-519.65,0.00024931,2]
[320214842,1711212647359,-959.23,0.00024931,2]
[320214844,1711212647368,-501.57,0.00024931,2]
[320214846,1711212647378,-646.31184895,0.00024931,2]
[320214847,1711212647387,-761.63,0.00024931,2]
[320214848,1711212647396,-722.38,0.00024931,2]
[320214849,1711212647406,-500.0,0.00024931,2]
[320214850,1711212647415,-500.0,0.00024931,2]
[320214851,1711212647425,-500.0,0.00024931,2]
[320214852,1711212647434,-1437.28,0.00024931,2]
[320214853,1711212647444,-500.0,0.00024931,2]
[320214854,1711212647453,-500.0,0.00024931,2]
[320214855,1711212647462,-952.0,0.00024931,2]
[320214856,1711212647471,-797.16,0.00024931,2]
[320214857,1711212647481,-2390.84,0.00024931,2]
[320214858,1711212647490,-500.0,0.00024931,2]
[320214859,1711212647499,-500.0,0.00024931,2]
[320214860,1711212647509,-10611.24,0.00024931,2]
[320214861,1711212647518,-1731.44,0.00024931,2]
[320214862,1711212647527,-1151.9,0.00024931,2]
[320214863,1711212647536,-827.84,0.00024931,2]
[320214864,1711212647548,-2363.77,0.00024931,2]
[320214865,1711212647556,-500.0,0.00024931,2]
[320214866,1711212647566,-1156.09,0.00024931,2]
[320214867,1711212647576,-737.19,0.00024931,2]
[320214868,1711212647584,-500.0,0.00024931,2]
[320214869,1711212647593,-556.87,0.00024931,2]
[320214870,1711212647603,-2530.43,0.00024931,2]
[320214871,1711212647612,-500.0,0.00024931,2]
[320214872,1711212647621,-880.14,0.00024931,2]
[320214873,1711212647630,-500.0,0.00024931,2]
[320214874,1711212647639,-907.25,0.00024931,2]
[320214875,1711212647648,-12920.02,0.00024931,2]
[320214876,1711212647657,-500.0,0.00024931,2]
[320214877,1711212647666,-230.70766073,0.00024999,2]
[320214878,1711212647675,-25060.8695268,0.00025,3]
[320214879,1711212647684,-79896.201684,0.00025,2]
[320214880,1711212647693,-854.46570924,0.00025,2]
[320214881,1711212647702,-400.0,0.00025,2]
[320214882,1711212647711,-800.0,0.00025,2]
[320214883,1711212647720,-800.0,0.00025,2]
[320214884,1711212647730,-800.0,0.00025,2]
[320214885,1711212647739,-154.93802479,0.00025,2]
[320214886,1711212647749,-500.0,0.00025,10]
[320214887,1711212647758,-153.0,0.00025,2]
[320214888,1711212647767,-153.0,0.00025,2]
[320214889,1711212647777,-306.0,0.00025,2]
[320214890,1711212647786,-289.2649314,0.00025,2]
[320214891,1711212647797,-153.0,0.00025,2]
[320214892,1711212647806,-153.0,0.00025,2]
[320214893,1711212647815,-153.0,0.00025,2]
[320214894,1711212647824,-153.0,0.00025,2]
[320214895,1711212647833,-153.0,0.00025,2]
[320214896,1711212647842,-153.1145229,0.00025,2]
[320214897,1711212647852,-153.0,0.00025,2]
[320214898,1711212647861,-156.915523,0.00025036,2]
[320214899,1711212647870,-174.86356,0.00025036,2]
[320214900,1711212647879,-262.75413611,0.00025044,2]
[320214901,1711212647888,-167.095661,0.000251,2]
[320214902,1711212647898,-2685.98463048,0.00025104,2]
[320214903,1711212647907,-1849.78099057,0.00025136,2]
[320214904,1711212647917,-10006.89273517,0.00025136,2]
[320214905,1711212647926,-2848.27817261,0.00025136,3]
[320214906,1711212647935,-916.85161867,0.00025136,2]
[320214907,1711212647945,-313.37147734,0.00025136,2]
[320214908,1711212647954,-279.24007018,0.00025136,2]
[320214909,1711212647967,-100242.57426866,0.00025136,2]
[320214910,1711212647976,-9873.78376832,0.00025136,2]
[320214911,1711212647985,-28507.83745163,0.00025136,2]
[320214912,1711212647995,-2966.92108387,0.00025136,2]
[320214913,1711212648007,-150.98794376,0.00025136,2]
[320214914,1711212648016,-500.24272307,0.00025136,2]
[320214915,1711212648026,-315.18925785,0.00025136,2]
[320214916,1711212648035,-24412.73761064,0.00025136,2]
[320214917,1711212648046,-18875.05006778,0.00025136,2]
[320214918,1711212648055,-2189.85632659,0.00025136,2]
[320214919,1711212648064,-997.0,0.00025136,10]
[320214920,1711212648073,-997.0,0.00025136,10]
[320214921,1711212648083,-96.19476795,0.00025136,10]
[320214922,1711212648184,-900.80523205,0.00025136,10]
[320214923,1711212648193,-997.0,0.00025136,10]
[320214924,1711212648202,-997.0,0.00025136,10]
[320214925,1711212648211,-997.0,0.00025136,10]
[320214926,1711212648220,-997.0,0.00025136,10]
[320214927,1711212648230,-997.0,0.00025136,10]
[320214928,1711212648239,-997.0,0.00025136,10]
[320214929,1711212648248,-997.0,0.00025136,10]
[320214930,1711212648257,-997.0,0.00025136,10]
[320214931,1711212648266,-997.0,0.00025136,10]
[320214932,1711212648275,-997.0,0.00025136,10]
[320214933,1711212648283,-997.0,0.00025136,10]
[320214934,1711212648295,-997.0,0.00025136,10]
[320214935,1711212648304,-997.0,0.00025136,10]
[320214936,1711212648313,-997.0,0.00025136,10]
[320214937,1711212648323,-997.0,0.00025136,10]
[320214938,1711212648332,-997.0,0.00025136,10]
[320214939,1711212648341,-997.0,0.00025136,10]
[320214940,1711212648350,-997.0,0.00025136,10]
[320214941,1711212648359,-997.0,0.00025136,10]
[320214942,1711212648368,-997.0,0.00025136,10]
[320214943,1711212648378,-997.0,0.00025136,10]
[320214944,1711212648387,-997.0,0.00025136,10]
[320214945,1711212648396,-997.0,0.00025136,10]
[320214946,1711212648405,-997.0,0.00025136,10]
[320214947,1711212648415,-997.0,0.00025136,10]
[320214948,1711212648424,-997.0,0.00025136,10]
[320214949,1711212648434,-432.78277259,0.00025136,10]
[320214950,1711212648443,-997.0,0.00025136,10]
[320214951,1711212648452,-462.95218834,0.00025136,10]
[320214952,1711212648462,-972.65083426,0.00025136,2]
[320214953,1711212648471,-151.81010872,0.00025136,2]
[320214954,1711212648480,-500.0,0.00025139,2]
[320214955,1711212648490,-174.863559,0.00025144,2]
[320214956,1711212648500,-313.831043,0.00025144,2]
[320214957,1711212648509,-174.86356,0.00025144,2]
[320214958,1711212648521,-293.454931,0.00025144,2]
[320214959,1711212648530,-299.941223,0.00025144,2]
[320214960,1711212648542,-1436.990471,0.00025144,2]
[320214961,1711212648552,-439.313766,0.00025144,2]
[320214962,1711212648563,-542.0,0.00025147,30]
[320214963,1711212648573,-500.0,0.00025201,2]
[320214964,1711212648582,-500.0,0.00025202,2]
[320214965,1711212648591,-377.14212759,0.00025202,2]
[320214966,1711212648600,-500.0,0.00025202,2]
[320214967,1711212648609,-708.73,0.00025202,2]
[320214968,1711212648619,-4814.69,0.00025202,2]
[320214969,1711212648630,-500.0,0.00025202,2]
[320214970,1711212648640,-1367.67,0.00025202,2]
[320214971,1711212648650,-500.0,0.00025202,2]
[320214972,1711212648660,-500.0,0.00025202,2]
[320214973,1711212648669,-12171.39,0.00025202,2]
[320214974,1711212648678,-635.12,0.00025202,2]
[320214975,1711212648688,-1123.26,0.00025202,2]
[320214976,1711212648697,-2886.49,0.00025202,2]
[320214977,1711212648706,-500.0,0.00025202,2]
[320214978,1711212648716,-500.0,0.00025202,2]
[320214979,1711212648725,-899.57,0.00025202,2]
[320214980,1711212648734,-500.0,0.00025202,2]
[320214981,1711212648744,-37257.32522664,0.00025204,2]
[320214989,1711212833410,20491.9126757,0.0002,2]
[320214991,1711212858661,3484.5208862,0.000125,2]
[320214992,1711212876319,500.0,0.0002,2]
[320214998,1711212894382,500.0,0.0002,2]
[320215000,1711212914438,500.0,0.0002,2]
[320215001,1711212930324,500.0,0.0002,2]
[320215003,1711212949375,500.0,0.0002,2]
[320215005,1711212966339,500.0,0.0002,2]
[320215006,1711212982330,500.0,0.0002,2]
[320215007,1711213000334,500.0,0.0002,2]
[320215008,1711213018360,500.0,0.0002,2]
[320215009,1711213038337,500.0,0.0002,2]
[320215010,1711213060342,500.0,0.0002,2]
[320215011,1711213082517,500.0,0.0002,2]
[320215012,1711213098437,500.0,0.0002,2]
[320215013,1711213116349,500.0,0.0002,2]
[320215014,1711213132349,500.0,0.0002,2]
[320215016,1711213612439,698.18365093,0.000189,2]
[320215144,1711213832685,-779.94063236,0.00023899,2]
[320215146,1711213832695,-698.18365093,0.000239,2]
[320215148,1711213832703,-176.25,0.00024657,2]
[320215150,1711213832713,-500.0,0.00024657,2]
[320215152,1711213832722,-500.0,0.00024657,2]
[320215154,1711213832732,-349.77186956,0.00024657,2]
[320215156,1711213832743,-675.75,0.00024657,2]
[320215158,1711213832753,-501.73396832,0.00024657,2]
[320215160,1711213832763,-500.0,0.00024657,2]
[320215162,1711213832774,-501.63766769,0.00024657,2]
[320215164,1711213832783,-369.29944814,0.00024657,2]
[320215166,1711213832796,-130.70055186,0.00024657,2]
[320215168,1711213832806,-166.666666,0.00024658,2]
[320215170,1711213832814,-155.97542087,0.00024827,2]
[320215172,1711213832824,-160.0,0.00024902,3]
[320215174,1711213832835,-930.89185044,0.00024926,2]
[320215176,1711213832845,-1587.16,0.00024926,2]
[320215177,1711213832856,-500.0,0.00024926,2]
[320215179,1711213832866,-5799.21265761,0.00024926,2]
[320223685,1711215032727,-3877.0,0.000224,2]
[320223686,1711215032736,-232.72788364,0.00022826,2]
[320223688,1711215032745,-3062.23706968,0.000245,7]
[320223690,1711215032755,-166.666666,0.00024658,2]
[320223692,1711215032765,-2318.23160792,0.000247,2]
[320223787,1711215038675,-33.15342913,0.000247,2]
[320223789,1711215038688,-150.0,0.000248,30]
[320223791,1711215038697,-156.47973414,0.00024826,2]
[320223793,1711215038706,-43.24350121,0.000249,30]
[320223796,1711215038719,-6605.8528762,0.000249,30]
[320223798,1711215038728,-3460.06783428,0.00024924,2]
[320223800,1711215038737,-1828.69584035,0.00024924,2]
[320223801,1711215038746,-764.0,0.00024924,2]
[320223803,1711215038756,-474.24563441,0.00024924,2]
[320223806,1711215038766,-416.44658316,0.00024925,2]
[320223809,1711215038776,-693.0312,0.00024925,2]
[320223811,1711215038786,-500.0,0.00024925,2]
[320223813,1711215038795,-500.0,0.00024925,2]
[320223815,1711215038804,-500.0,0.00024925,2]
[320223817,1711215038813,-500.0,0.00024925,2]
[320223820,1711215038822,-1253.69,0.00024925,2]
[320223822,1711215038831,-500.0,0.00024925,2]
[320223824,1711215038841,-680.49,0.00024925,2]
[320223826,1711215038850,-500.0,0.00024925,2]
[320223827,1711215038859,-9485.34,0.00024925,2]
[320223829,1711215038868,-500.0,0.00024925,2]
[320223832,1711215038878,-1521.02,0.00024925,2]
[320223833,1711215038887,-990.37,0.00024925,2]
[320223835,1711215038896,-758.85,0.00024925,2]
[320223837,1711215038905,-2245.14,0.00024925,2]
[320223839,1711215038915,-500.0,0.00024925,2]
[320223841,1711215038924,-500.0,0.00024925,2]
[320223844,1711215038933,-1059.75,0.00024925,2]
[320223846,1711215038942,-510.47,0.00024925,2]
[320223848,1711215038951,-2368.65,0.00024925,2]
[320223850,1711215038961,-10525.25273073,0.00024925,2]
[320223852,1711215038973,-631.85726927,0.00024925,2]
[320223854,1711215038981,-114.40091052,0.00024925,2]
[320224088,1711215040826,-359.05647801,0.00024925,2]